bitfinex/quotes_BTCUSD_20210101
["timestamp","ask_amount","ask_price","bid_price","bid_amount"]
[1609533129578,5.11105662,29254.0,29253.0,62.22666258]
[1609533130283,5.31105662,29254.0,29253.0,62.22666258]
[1609533130578,5.31105662,29254.0,29253.0,62.19614858]
[1609533130776,5.11105662,29254.0,29253.0,61.94614858]
[1609533131000,5.11105662,29254.0,29253.0,61.89208458]
[1609533131395,5.11105662,29254.0,29253.0,61.88135731]
[1609533131596,5.11105662,29254.0,29253.0,61.79792479]
[1609533132295,5.11105662,29254.0,29253.0,61.72274144]
[1609533134402,5.11105662,29254.0,29253.0,61.65142844]
[1609533134598,5.11105662,29254.0,29253.0,61.65687286]
[1609533135400,5.11105662,29254.0,29253.0,61.55537139]
[1609533135799,5.11105662,29254.0,29253.0,61.54867739]
[1609533137250,5.11105662,29254.0,29253.0,61.38246739]
[1609533139250,5.11105662,29254.0,29253.0,60.69916739]
[1609533139551,5.11105662,29254.0,29253.0,60.69961139]
[1609533139949,4.99096055,29254.0,29253.0,60.69961139]
[1609533140251,4.99096055,29254.0,29253.0,60.68520039]
[1609533140252,4.9731122,29254.0,29253.0,60.68520039]
[1609533140490,5.00876924,29254.0,29253.0,60.68520039]
[1609533141392,4.02780315,29254.0,29253.0,60.68520039]
[1609533141597,4.02280315,29254.0,29253.0,60.88520039]
[1609533141898,2.58797477,29254.0,29253.0,61.28020039]
[1609533142290,1.94355066,29254.0,29253.0,61.28020039]
[1609533142694,1.94355066,29254.0,29253.0,61.27020039]
[1609533143392,1.93855066,29254.0,29253.0,61.27020039]
[1609533144394,2.30198566,29254.0,29253.0,61.27020039]
[1609533146220,1.93855066,29254.0,29253.0,61.37020039]
[1609533146417,1.93855066,29254.0,29253.0,61.27020039]
[1609533147019,1.93855066,29254.0,29253.0,61.26520039]
[1609533147922,1.94855066,29254.0,29253.0,61.26520039]
[1609533149760,1.8434666,29254.0,29253.0,61.26520039]
[1609533149923,1.8234546,29254.0,29253.0,61.26520039]
[1609533151125,1.8234546,29254.0,29253.0,61.25520039]
[1609533152039,1.8234546,29254.0,29253.0,61.21584947]
[1609533153344,2.1868896,29254.0,29253.0,61.21584947]
[1609533153745,2.1868896,29254.0,29253.0,60.82084947]
[1609533153946,2.3068896,29254.0,29253.0,60.82084947]
[1609533154149,2.3068896,29254.0,29253.0,60.62084947]
[1609533154150,3.7117298,29254.0,29253.0,60.62084947]
[1609533154359,4.0622998,29254.0,29253.0,60.62084947]
[1609533154655,4.02664276,29254.0,29253.0,59.83059286]
[1609533154848,4.02664276,29254.0,29253.0,59.70992285]
[1609533155046,4.02664276,29254.0,29253.0,59.02662285]
[1609533155509,3.66229901,29254.0,29253.0,58.34332285]
[1609533155703,3.66229901,29254.0,29253.0,58.30892534]
[1609533156102,3.78014929,29254.0,29253.0,58.30892534]
[1609533156302,3.58014929,29254.0,29253.0,58.30892534]
[1609533156905,3.7154339,29254.0,29253.0,58.30892534]
[1609533157854,3.78683479,29254.0,29253.0,58.30892534]
[1609533158051,3.95724112,29254.0,29253.0,58.20475534]
[1609533158355,3.98651197,29254.0,29253.0,58.20475534]
[1609533160288,3.98651197,29254.0,29253.0,58.13643377]
[1609533160689,3.22609588,29254.0,29253.0,58.13643377]
[1609533160887,3.98651197,29254.0,29253.0,58.13643377]
[1609533161083,3.22609588,29254.0,29253.0,58.13643377]
[1609533161288,4.09348318,29254.0,29253.0,58.13643377]
[1609533161889,4.09348318,29254.0,29253.0,58.08554059]
[1609533162288,4.09348318,29254.0,29253.0,58.06768881]
[1609533162991,3.82892696,29254.0,29253.0,58.06768881]
[1609533163593,3.82685216,29254.0,29253.0,58.06768881]
[1609533164089,3.06643607,29254.0,29253.0,58.06768881]
[1609533164695,3.82685216,29254.0,29253.0,58.06768881]
[1609533164913,3.71988095,29254.0,29253.0,57.94836881]
[1609533165114,3.91988095,29254.0,29253.0,57.94836881]
[1609533166414,2.95946486,29254.0,29253.0,57.94836881]
[1609533166617,2.96569171,29254.0,29253.0,58.14836881]
[1609533166813,2.95946486,29254.0,29253.0,58.14836881]
[1609533167012,2.95946486,29254.0,29253.0,57.94836881]
[1609533167815,2.95946486,29254.0,29253.0,57.93740819]
[1609533168016,3.95946486,29254.0,29253.0,57.93740819]
[1609533168214,3.95946486,29254.0,29253.0,57.83317519]
[1609533168415,3.96569248,29254.0,29253.0,57.83317519]
[1609533169216,3.96569248,29254.0,29253.0,57.76517519]
[1609533169413,3.96569248,29254.0,29253.0,57.96517519]
[1609533169615,3.96569248,29254.0,29253.0,57.86200253]
[1609533169814,3.96154179,29254.0,29253.0,57.86200253]
[1609533170017,3.96569374,29254.0,29253.0,57.7798153]
[1609533170213,3.96154179,29254.0,29253.0,57.7798153]
[1609533170454,3.96154179,29254.0,29253.0,57.77508414]
[1609533170855,3.96154179,29254.0,29253.0,57.47116914]
[1609533171059,4.72195788,29254.0,29253.0,57.24900118]
[1609533171268,4.92195788,29254.0,29253.0,56.71899053]
[1609533171470,5.10110423,29254.0,29253.0,55.81426783]
[1609533171666,5.34325952,29254.0,29253.0,55.01221284]
[1609533172057,5.34325952,29254.0,29253.0,54.27734217]
[1609533172356,5.33725952,29254.0,29253.0,53.45713279]
[1609533172562,6.19175952,29254.0,29253.0,53.35641921]
[1609533172764,6.19175952,29254.0,29253.0,52.67291921]
[1609533172956,6.19175952,29254.0,29253.0,52.58321921]
[1609533173155,6.27480468,29254.0,29253.0,52.58321921]
[1609533174257,6.27480468,29254.0,29253.0,52.3875252]
[1609533174560,6.25773656,29254.0,29253.0,52.3444162]
[1609533174760,6.06373656,29254.0,29253.0,52.3444162]
[1609533175064,5.80203656,29254.0,29253.0,51.6609162]
[1609533175957,5.90203656,29254.0,29253.0,51.6609162]
[1609533176877,5.89031196,29254.0,29253.0,51.6609162]
[1609533177275,5.79031196,29254.0,29253.0,51.6609162]
[1609533177473,5.89031196,29254.0,29253.0,51.6609162]
[1609533177874,5.92597235,29254.0,29253.0,51.6447042]
[1609533178277,5.92597235,29254.0,29253.0,51.47092404]
[1609533178673,5.92597235,29254.0,29253.0,51.44874434]
[1609533178875,5.92597235,29254.0,29253.0,51.26527367]
[1609533179075,6.11997235,29254.0,29253.0,51.26527367]
[1609533179281,5.92597235,29254.0,29253.0,51.26527367]
[1609533179479,5.92597235,29254.0,29253.0,51.23054891]
[1609533179780,6.11997235,29254.0,29253.0,51.23054891]
[1609533180181,6.30804235,29254.0,29253.0,51.11587634]
[1609533180380,6.82804235,29254.0,29253.0,51.11587634]
[1609533180880,6.30804235,29254.0,29253.0,51.11587634]
[1609533181478,6.82804235,29254.0,29253.0,51.11587634]
[1609533182108,6.30804235,29254.0,29253.0,51.10938899]
[1609533182308,6.12966051,29254.0,29253.0,51.10938899]
[1609533182507,5.94159051,29254.0,29253.0,51.10938899]
[1609533183012,6.02465519,29254.0,29253.0,51.10938899]
[1609533183310,5.83065519,29254.0,29253.0,51.10938899]
[1609533183509,6.54465519,29254.0,29253.0,51.10938899]
[1609533183906,6.22578519,29254.0,29253.0,51.10938899]
[1609533184212,6.74578519,29254.0,29253.0,51.10938899]
[1609533184808,6.55178519,29254.0,29253.0,51.10938899]
[1609533185519,6.03178519,29254.0,29253.0,51.10938899]
[1609533185670,6.74578519,29254.0,29253.0,49.27001584]
[1609533185874,7.12045512,29254.0,29253.0,43.75061205]
[1609533186182,6.26462605,29254.0,29253.0,35.67269852]
[1609533186375,7.03215203,29254.0,29253.0,31.40185491]
[1609533186575,7.26462605,29254.0,29253.0,27.27154237]
[1609533186773,7.26462605,29254.0,29253.0,21.7464786]
[1609533186774,8.18462605,29254.0,29253.0,21.7464786]
[1609533186971,7.39051622,29254.0,29253.0,18.55183892]
[1609533187174,9.82260076,29254.0,29253.0,15.6960218]
[1609533187404,9.82260076,29254.0,29253.0,13.62697069]
[1609533187602,9.82260076,29254.0,29253.0,9.58847141]
[1609533187603,21.12260076,29254.0,29253.0,9.58847141]
[1609533187902,20.82806076,29254.0,29253.0,7.31765416]
[1609533188106,20.26693764,29254.0,29253.0,6.46583236]
[1609533188305,20.26693764,29254.0,29253.0,4.80579091]
[1609533188306,22.83223764,29254.0,29253.0,4.80579091]
[1609533188503,22.83223764,29254.0,29253.0,3.44186656]
[1609533188708,22.93223764,29254.0,29253.0,2.56219518]
[1609533189008,21.43018183,29254.0,29253.0,2.4227259]
[1609533189204,20.6346481,29254.0,29253.0,2.14812589]
[1609533189401,20.1346481,29254.0,29253.0,1.80049257]
[1609533189604,20.1346481,29254.0,29253.0,1.74992319]
[1609533189801,20.1346481,29254.0,29253.0,1.68245]
[1609533190008,20.98974811,29254.0,29253.0,1.35330935]
[1609533190306,20.78385794,29254.0,29253.0,1.24296831]
[1609533190504,20.88974811,29254.0,29253.0,0.45534207]
[1609533190810,20.72203765,29254.0,29253.0,0.44598707]
[1609533191008,20.62203765,29254.0,29253.0,0.40250817]
[1609533191241,20.21679079,29254.0,29253.0,0.40250817]
[1609533191441,20.21679079,29254.0,29253.0,0.34121221]
[1609533191442,18.95971579,29254.0,29253.0,0.34121221]
[1609533191645,8.78369802,29254.0,29253.0,100.04537338]
[1609533191839,8.78369802,29254.0,29253.0,99.93098195]
[1609533192035,7.62860726,29254.0,29253.0,99.93098195]
[1609533192236,7.75264876,29254.0,29253.0,99.93098195]
[1609533192435,5.7347934,29254.0,29253.0,99.93098195]
[1609533192640,4.35969339,29254.0,29253.0,99.86935882]
[1609533192835,4.35969339,29254.0,29253.0,99.80431396]
[1609533193036,4.47969339,29254.0,29253.0,99.80431396]
[1609533193435,3.7192773,29254.0,29253.0,99.80397049]
[1609533193642,3.7192773,29254.0,29253.0,100.25897049]
[1609533193643,3.5938173,29254.0,29253.0,100.25897049]
[1609533193840,2.94939319,29254.0,29253.0,100.25397049]
[1609533194143,3.04939319,29254.0,29253.0,100.25397049]
[1609533194342,1.68980366,29254.0,29253.0,100.25397049]
[1609533194538,1.68730166,29254.0,29253.0,100.4935544]
[1609533194843,0.90148857,29254.0,29253.0,100.4935544]
[1609533195044,1.27931371,29254.0,29253.0,100.4935544]
[1609533195239,0.83497871,29254.0,29253.0,100.4935544]
[1609533195444,0.49347871,29254.0,29253.0,101.46575355]
[1609533195741,0.49347871,29254.0,29253.0,101.4527044]
[1609533196139,0.49347871,29254.0,29253.0,101.90000355]
[1609533196768,0.49347871,29254.0,29253.0,101.9063058]
[1609533198474,0.29567871,29254.0,29253.0,101.9063058]
[1609533199076,0.25607871,29254.0,29253.0,101.9063058]
[1609533199274,0.24817871,29254.0,29253.0,101.9063058]
[1609533199674,0.24657871,29254.0,29253.0,101.9013058]
[1609533200178,0.24627871,29254.0,29253.0,101.9013058]
[1609533202028,0.24627871,29254.0,29253.0,101.9813058]
[1609533203329,0.24627871,29254.0,29253.0,101.9013058]
[1609533203528,0.24627871,29254.0,29253.0,101.9813058]
[1609533205029,0.24627871,29254.0,29253.0,101.8765058]
[1609533205331,0.24627871,29254.0,29253.0,101.5965058]
[1609533205533,0.21062357,29254.0,29253.0,101.7965058]
[1609533205731,1.02383141,29254.0,29253.0,101.7965058]
[1609533206647,1.02383141,29254.0,29253.0,101.2670558]
[1609533206846,1.38726641,29254.0,29253.0,101.2670558]
[1609533208451,0.68726641,29254.0,29253.0,101.2670558]
[1609533209249,0.70511294,29254.0,29253.0,101.02747189]
[1609533209446,0.70511294,29254.0,29253.0,101.2670558]
[1609533209749,0.90511294,29254.0,29253.0,101.02747189]
[1609533210154,0.90511294,29254.0,29253.0,100.39777189]
[1609533210357,1.985874,29254.0,29253.0,100.06027274]
[1609533210751,2.669544,29254.0,29253.0,100.06027274]
[1609533211053,2.740872,29254.0,29253.0,100.0259106]
[1609533211256,2.77653699,29254.0,29253.0,99.5709106]
[1609533211458,3.77653699,29254.0,29253.0,99.5709106]
[1609533211657,3.77653699,29254.0,29253.0,100.0659106]
[1609533211874,2.77653699,29254.0,29253.0,100.0659106]
[1609533213074,1.69577593,29254.0,29253.0,100.0659106]
[1609533214775,1.69577593,29254.0,29253.0,100.50549451]
[1609533215630,1.6066014,29254.0,29253.0,100.50549451]
[1609533215824,1.6066014,29254.0,29253.0,100.50435851]
[1609533218859,1.6066014,29254.0,29253.0,100.2647746]
[1609533219062,1.6066014,29254.0,29253.0,100.50435851]
[1609533220561,1.5915894,29254.0,29253.0,100.50435851]
[1609533221387,1.5865894,29254.0,29253.0,100.50435851]
[1609533221586,1.5865894,29254.0,29253.0,100.2647746]
[1609533222486,1.5865894,29254.0,29253.0,100.50435851]
[1609533223091,1.5865894,29254.0,29253.0,100.84185766]
[1609533223289,1.5865894,29254.0,29253.0,100.2647746]
[1609533223689,1.5865894,29254.0,29253.0,100.2597746]
[1609533225090,1.5865894,29254.0,29253.0,100.0597746]
[1609533225796,1.59072522,29254.0,29253.0,100.0597746]
[1609533226294,1.58715443,29254.0,29253.0,100.0597746]
[1609533227113,3.42833158,29254.0,29253.0,100.0597746]
[1609533227915,3.4605531,29254.0,29253.0,100.0597746]
[1609533228110,3.4605531,29254.0,29253.0,100.0275376]
[1609533228311,1.61937595,29254.0,29253.0,100.0275376]
[1609533229019,1.58215337,29254.0,29253.0,100.0275376]
[1609533229617,3.42333052,29254.0,29253.0,99.9916156]
[1609533230127,4.42333052,29254.0,29253.0,99.4776746]
[1609533230328,4.42333052,29254.0,29253.0,99.2598256]
[1609533230329,5.10700052,29254.0,29253.0,99.2598256]
[1609533230617,5.12406864,29254.0,29253.0,99.2598256]
[1609533230776,5.64406864,29254.0,29253.0,99.2261146]
[1609533231380,5.91096899,29254.0,29253.0,99.2261146]
[1609533231581,5.98237355,29254.0,29253.0,99.2032706]
[1609533231975,5.98237355,29254.0,29253.0,99.1861786]
[1609533232178,5.98237355,29254.0,29253.0,99.1516736]
[1609533232510,5.98237355,29254.0,29253.0,99.1417246]
[1609533233012,5.98237355,29254.0,29253.0,99.1246326]
[1609533233214,6.06509518,29254.0,29253.0,99.1246326]
[1609533233411,6.06509518,29254.0,29253.0,99.0904456]
[1609533233715,5.98237355,29254.0,29253.0,99.0904456]
[1609533233918,6.06502934,29254.0,29253.0,99.0712846]
[1609533234117,5.98237355,29254.0,29253.0,99.0712846]
[1609533234315,6.0650447,29254.0,29253.0,99.0712846]
[1609533234516,7.0650447,29254.0,29253.0,98.8541926]
[1609533234817,7.0650447,29254.0,29253.0,98.7502546]
[1609533235014,7.04797658,29254.0,29253.0,98.6468346]
[1609533235215,7.04797658,29254.0,29253.0,98.55498481]
[1609533236540,6.96530543,29254.0,29253.0,98.55498481]
[1609533236741,7.0479315,29254.0,29253.0,98.50818947]
[1609533237142,6.96530543,29254.0,29253.0,98.50818947]
[1609533237343,6.20488934,29254.0,29253.0,98.50818947]
[1609533237546,6.96530543,29254.0,29253.0,98.45637038]
[1609533237740,6.20488934,29254.0,29253.0,98.45637038]
[1609533237942,6.96530543,29254.0,29253.0,98.45046488]
[1609533238145,6.44530543,29254.0,29253.0,98.43788796]
[1609533238345,5.68488934,29254.0,29253.0,98.33569596]
[1609533238556,4.68488934,29254.0,29253.0,98.33569596]
[1609533238852,3.45520515,29254.0,29253.0,98.33569596]
[1609533239045,3.45520515,29254.0,29253.0,98.53569596]
[1609533239245,2.37444409,29254.0,29253.0,99.53569596]
[1609533239448,2.33929852,29254.0,29253.0,99.53569596]
[1609533240744,2.33309317,29254.0,29253.0,99.53569596]
[1609533241748,2.33309317,29254.0,29253.0,99.53236156]
[1609533243876,4.17427032,29254.0,29253.0,99.49837256]
[1609533244077,4.17427032,29254.0,29253.0,98.49937256]
[1609533244774,3.41385423,29254.0,29253.0,98.49937256]
[1609533245076,4.17427032,29254.0,29253.0,98.49937256]
[1609533245472,3.41385423,29254.0,29253.0,98.49937256]
[1609533245925,4.17427032,29254.0,29253.0,98.49937256]
[1609533246325,3.41385423,29254.0,29253.0,98.49937256]
[1609533247022,3.4317037,29254.0,29253.0,98.49937256]
[1609533247226,3.4317037,29254.0,29253.0,98.49837256]
[1609533247428,3.4317037,29254.0,29253.0,98.49937256]
[1609533250465,3.4317037,29254.0,29253.0,98.49879379]
[1609533250665,3.4317037,29254.0,29253.0,98.29879379]
[1609533251064,3.4317037,29254.0,29253.0,98.29779379]
[1609533251287,3.4317037,29254.0,29253.0,98.29879379]
[1609533251988,4.19626477,29254.0,29253.0,98.29879379]
[1609533252184,4.19126477,29254.0,29253.0,98.29879379]
[1609533252984,3.43084868,29254.0,29253.0,98.29879379]
[1609533253185,4.71126477,29254.0,29253.0,98.29879379]
[1609533253386,4.19126477,29254.0,29253.0,98.09879379]
[1609533253884,4.19126477,29254.0,29253.0,98.09779379]
[1609533254092,4.19333963,29254.0,29253.0,98.09779379]
[1609533254285,4.19333963,29254.0,29253.0,98.09879379]
[1609533254485,3.43292354,29254.0,29253.0,98.09879379]
[1609533254687,3.69800526,29254.0,29253.0,98.09879379]
[1609533255088,3.69800526,29254.0,29253.0,98.08879379]
[1609533255293,4.45842135,29254.0,29253.0,98.08879379]
[1609533255489,3.69800526,29254.0,29253.0,98.08879379]
[1609533255690,3.78100542,29254.0,29253.0,98.08879379]
[1609533256587,3.78100542,29254.0,29253.0,98.08779379]
[1609533256786,3.78100542,29254.0,29253.0,98.08879379]
[1609533257518,3.69800526,29254.0,29253.0,98.08879379]
[1609533257924,4.45842135,29254.0,29253.0,98.08379379]
[1609533258123,4.97842135,29254.0,29253.0,97.88379379]
[1609533258325,4.90623544,29254.0,29253.0,97.02659779]
[1609533258521,4.90623544,29254.0,29253.0,96.69201768]
[1609533258718,5.93838046,29254.0,29253.0,95.99132268]
[1609533259023,5.93838046,29254.0,29253.0,95.30772268]
[1609533259219,5.93838046,29254.0,29253.0,94.40248047]
[1609533259522,5.90271547,29254.0,29253.0,93.53843546]
[1609533259724,5.90271547,29254.0,29253.0,93.4666522]
[1609533260021,6.75741547,29254.0,29253.0,93.4656522]
[1609533260219,6.75741547,29254.0,29253.0,93.39673251]
[1609533260706,6.8287717,29254.0,29253.0,93.34263651]
[1609533260967,6.8287717,29254.0,29253.0,92.5982705]
[1609533261265,6.8287717,29254.0,29253.0,92.5812705]
[1609533261469,7.1347717,29254.0,29253.0,92.54735714]
[1609533261670,7.31170358,29254.0,29253.0,92.49178814]
[1609533262269,6.81170358,29254.0,29253.0,92.22035914]
[1609533262471,6.8287717,29254.0,29253.0,91.95277631]
[1609533262703,7.8287717,29254.0,29253.0,91.90139731]
[1609533262903,7.8287717,29254.0,29253.0,91.87945431]
[1609533263106,7.81170358,29254.0,29253.0,91.87945431]
[1609533263305,7.81170358,29254.0,29253.0,91.88045431]
[1609533263607,7.81170358,29254.0,29253.0,91.85379034]
[1609533263805,7.7262317,29254.0,29253.0,91.83614134]
[1609533264007,7.70916358,29254.0,29253.0,91.79273342]
[1609533264208,7.81635358,29254.0,29253.0,90.92093741]
[1609533264405,8.3334217,29254.0,29253.0,90.91400267]
[1609533264604,8.3334217,29254.0,29253.0,90.8796747]
[1609533264804,8.31635358,29254.0,29253.0,90.7949447]
[1609533265207,8.12235358,29254.0,29253.0,90.7778487]
[1609533265404,8.31635358,29254.0,29253.0,90.7778487]
[1609533265609,8.20916358,29254.0,29253.0,90.7778487]
[1609533265805,8.20916358,29254.0,29253.0,90.7607527]
[1609533266004,8.24484154,29254.0,29253.0,90.7607527]
[1609533266637,8.05084154,29254.0,29253.0,90.7607527]
[1609533266834,8.24484154,29254.0,29253.0,90.7607527]
[1609533267334,7.74484154,29254.0,29253.0,90.6798627]
[1609533267632,7.74484154,29254.0,29253.0,90.6628627]
[1609533267832,7.74484154,29254.0,29253.0,89.97916269]
[1609533268034,7.74484154,29254.0,29253.0,89.95822269]
[1609533268443,7.55084154,29254.0,29253.0,89.95822269]
[1609533268642,7.74484154,29254.0,29253.0,89.95822269]
[1609533268845,7.55084154,29254.0,29253.0,89.95822269]
[1609533269044,7.74484154,29254.0,29253.0,89.94822269]
[1609533269745,7.74484154,29254.0,29253.0,89.94190069]
[1609533269945,7.45084154,29254.0,29253.0,89.90770269]
[1609533270658,6.69042545,29254.0,29253.0,89.90770269]
[1609533270856,6.77968526,29254.0,29253.0,90.06908269]
[1609533271154,6.14408024,29254.0,29253.0,90.06908269]
[1609533271551,6.38449633,29254.0,29253.0,90.06908269]
[1609533271755,5.90449633,29254.0,29253.0,90.06908269]
[1609533271967,6.09849633,29254.0,29253.0,90.06908269]
[1609533272172,6.09849633,29254.0,29253.0,89.73685369]
[1609533272173,6.18131984,29254.0,29253.0,89.73685369]
[1609533272367,5.90449633,29254.0,29253.0,89.73685369]
[1609533272569,6.09849633,29254.0,29253.0,89.73685369]
[1609533272866,5.90449633,29254.0,29253.0,89.71185369]
[1609533273266,6.09849633,29254.0,29253.0,89.71185369]
[1609533273873,6.19849633,29254.0,29253.0,89.60500763]
[1609533274069,6.19849633,29254.0,29253.0,89.55392296]
[1609533274573,7.19849633,29254.0,29253.0,89.55392296]
[1609533274771,6.90449633,29254.0,29253.0,89.55392296]
[1609533274971,7.19849633,29254.0,29253.0,89.55392296]
[1609533275172,7.19849633,29254.0,29253.0,88.87032296]
[1609533275370,7.00449633,29254.0,29253.0,88.87032296]
[1609533275742,7.95832804,29254.0,29253.0,88.87032296]
[1609533276004,7.95832804,29254.0,29253.0,88.86532296]
[1609533276005,7.76432804,29254.0,29253.0,88.86532296]
[1609533276201,7.76432804,29254.0,29253.0,88.80914504]
[1609533276405,7.95832804,29254.0,29253.0,88.04144503]
[1609533276706,7.95832804,29254.0,29253.0,88.02456203]
[1609533276707,7.76432804,29254.0,29253.0,88.02456203]
[1609533277004,6.90391195,29254.0,29253.0,88.02456203]
[1609533277402,6.90391195,29254.0,29253.0,88.01956203]
[1609533278844,6.90391195,29254.0,29253.0,87.97966345]
[1609533279946,6.77995009,29254.0,29253.0,87.97966345]
[1609533280349,6.25995009,29254.0,29253.0,87.97966345]
[1609533280547,6.77995009,29254.0,29253.0,87.97966345]
[1609533281877,6.97395009,29254.0,29253.0,87.97966345]
[1609533282073,6.77995009,29254.0,29253.0,87.97966345]
[1609533282773,6.77995009,29254.0,29253.0,87.97466345]
[1609533283878,7.06895009,29254.0,29253.0,87.97466345]
[1609533284774,6.96895009,29254.0,29253.0,87.97466345]
[1609533284975,7.06895009,29254.0,29253.0,87.97466345]
[1609533285378,6.77995009,29254.0,29253.0,87.97466345]
[1609533285982,6.25995009,29254.0,29253.0,87.97466345]
[1609533286192,5.25995009,29254.0,29253.0,87.95897945]
[1609533286388,5.25995009,29254.0,29253.0,89.08912336]
[1609533286780,4.17918903,29254.0,29253.0,89.08912336]
[1609533287015,4.19525009,29254.0,29253.0,89.08912336]
[1609533287715,3.11448903,29254.0,29253.0,89.08912336]
[1609533288418,2.47861918,29254.0,29253.0,89.58412336]
[1609533289218,2.56165156,29254.0,29253.0,89.58412336]
[1609533289416,2.47861918,29254.0,29253.0,89.58412336]
[1609533289618,2.24883301,29254.0,29253.0,90.24282336]
[1609533290978,2.2135417,29254.0,29253.0,90.24282336]
[1609533291781,2.21146693,29254.0,29253.0,90.24282336]
[1609533293583,2.21146693,29254.0,29253.0,90.24163473]
[1609533294384,2.47846643,29254.0,29253.0,90.24163473]
[1609533295087,2.47431712,29254.0,29253.0,90.24163473]
[1609533295685,2.47431712,29254.0,29253.0,90.00205082]
[1609533295894,3.5369097,29254.0,29253.0,89.15779082]
[1609533296097,3.5369097,29254.0,29253.0,88.95779082]
[1609533296293,3.5369097,29254.0,29253.0,88.44602695]
[1609533296512,4.06105234,29254.0,29253.0,88.44602695]
[1609533296706,3.54105234,29254.0,29253.0,88.44602695]
[1609533296908,4.06105234,29254.0,29253.0,88.44602695]
[1609533297113,3.54312395,29254.0,29253.0,88.44602695]
[1609533297410,3.57834227,29254.0,29253.0,87.95102695]
[1609533297912,3.82402726,29254.0,29253.0,87.95102695]
[1609533301913,4.34402726,29254.0,29253.0,87.95102695]
[1609533302543,3.82402726,29254.0,29253.0,87.95102695]
[1609533303144,3.83557448,29254.0,29253.0,87.95102695]
[1609533303544,3.90692898,29254.0,29253.0,87.95102695]
[1609533304248,3.82402553,29254.0,29253.0,87.95102695]
[1609533305346,4.34402553,29254.0,29253.0,87.95102695]
[1609533305548,3.82402553,29254.0,29253.0,87.95102695]
[1609533305834,3.82402553,29254.0,29253.0,88.15102695]
[1609533306147,3.90695776,29254.0,29253.0,87.95102695]
[1609533309663,3.89370965,29254.0,29253.0,87.95102695]
[1609533311271,3.81077742,29254.0,29253.0,87.95102695]
[1609533311770,3.81077742,29254.0,29253.0,88.15102695]
[1609533311968,3.81077742,29254.0,29253.0,88.63602695]
[1609533312171,4.33077742,29254.0,29253.0,88.43602695]
[1609533312580,5.09119351,29254.0,29253.0,87.90099595]
[1609533312785,5.07334155,29254.0,29253.0,86.71464795]
[1609533313171,5.07334155,29254.0,29253.0,85.99172195]
[1609533313172,4.80589805,29254.0,29253.0,85.99172195]
[1609533313371,4.80589805,29254.0,29253.0,85.30812195]
[1609533313974,4.80589805,29254.0,29253.0,85.23973279]
[1609533314174,4.99489805,29254.0,29253.0,85.22653279]
[1609533314873,5.84949805,29254.0,29253.0,85.22653279]
[1609533315292,6.51985897,29254.0,29253.0,85.22653279]
[1609533316190,7.51985897,29254.0,29253.0,85.22653279]
[1609533316988,7.51985897,29254.0,29253.0,85.22153279]
[1609533319195,6.51631765,29254.0,29253.0,85.22153279]
[1609533319400,5.57044288,29254.0,29253.0,85.22153279]
[1609533319601,5.67044288,29254.0,29253.0,85.22153279]
[1609533319796,5.57044288,29254.0,29253.0,85.22153279]
[1609533320397,5.67044288,29254.0,29253.0,85.22153279]
[1609533321657,5.85590156,29254.0,29253.0,85.22153279]
[1609533321856,6.61631765,29254.0,29253.0,85.22153279]
[1609533322057,5.85590156,29254.0,29253.0,85.22153279]
[1609533322658,5.67044288,29254.0,29253.0,85.22153279]
[1609533324058,5.85590156,29254.0,29253.0,85.22153279]
[1609533324261,5.85590156,29254.0,29253.0,85.20368079]
[1609533324594,5.78449371,29254.0,29253.0,85.20368079]
[1609533325361,5.67044378,29254.0,29253.0,85.20368079]
[1609533327178,5.85590246,29254.0,29253.0,85.20368079]
[1609533327573,5.67044378,29254.0,29253.0,85.20368079]
[1609533327779,5.67044378,29254.0,29253.0,85.19868079]
[1609533327975,6.00264643,29254.0,29253.0,85.19868079]
[1609533328375,6.00264643,29254.0,29253.0,85.18368079]
[1609533329179,6.18810511,29254.0,29253.0,85.18368079]
[1609533329377,6.00264643,29254.0,29253.0,85.18368079]
[1609533330179,5.96696847,29254.0,29253.0,85.12960279]
[1609533330384,6.15242715,29254.0,29253.0,85.12960279]
[1609533330579,5.96696847,29254.0,29253.0,85.12960279]
[1609533331182,6.15242715,29254.0,29253.0,85.12960279]
[1609533331483,5.96696847,29254.0,29253.0,85.12960279]
[1609533331683,5.96696847,29254.0,29253.0,84.97593469]
[1609533331881,5.96696847,29254.0,29253.0,84.59520587]
[1609533332297,6.15242715,29254.0,29253.0,84.59520587]
[1609533333101,5.96696847,29254.0,29253.0,84.59520587]
[1609533333699,5.86696847,29254.0,29253.0,84.59520587]
[1609533334299,5.96696847,29254.0,29253.0,84.59520587]
[1609533334500,5.86696847,29254.0,29253.0,84.59520587]
[1609533334703,6.15242715,29254.0,29253.0,84.59520587]
[1609533334902,6.15242715,29254.0,29253.0,83.91160587]
[1609533336737,6.18810371,29254.0,29253.0,83.91160587]
[1609533337040,6.18810371,29254.0,29253.0,83.22790586]
[1609533337336,5.67044238,29254.0,29253.0,83.22790586]
[1609533337537,5.85590106,29254.0,29253.0,83.22790586]
[1609533337973,5.85590106,29254.0,29253.0,83.22290586]
[1609533338672,5.67044238,29254.0,29253.0,83.22290586]
[1609533338973,5.85590106,29254.0,29253.0,83.22290586]
[1609533339174,5.67044238,29254.0,29253.0,83.22290586]
[1609533340776,5.68829501,29254.0,29253.0,83.22290586]
[1609533343099,5.67329501,29254.0,29253.0,83.22290586]
[1609533343595,5.67329501,29254.0,29253.0,83.21790586]
[1609533344201,5.57329501,29254.0,29253.0,83.21790586]
[1609533346801,5.57329501,29254.0,29253.0,82.53430586]
[1609533349628,5.85875369,29254.0,29253.0,82.53430586]
[1609533349825,5.85875369,29254.0,29253.0,81.85060585]
[1609533350026,5.67329501,29254.0,29253.0,81.85060585]
[1609533350327,5.85875369,29254.0,29253.0,81.85060585]
[1609533351190,5.57329501,29254.0,29253.0,81.85060585]
[1609533351787,5.67329501,29254.0,29253.0,81.85060585]
[1609533352287,5.85875369,29254.0,29253.0,81.85060585]
[1609533352931,5.85875369,29254.0,29253.0,81.84060585]
[1609533354333,5.67329501,29254.0,29253.0,81.84060585]
[1609533354635,5.57329501,29254.0,29253.0,81.84060585]
[1609533355035,5.56829501,29254.0,29253.0,81.84060585]
[1609533357774,5.47903363,29254.0,29253.0,81.81443877]
[1609533357974,5.47903363,29254.0,29253.0,82.01943877]
[1609533360372,5.47403363,29254.0,29253.0,82.01943877]
[1609533362795,5.47403363,29254.0,29253.0,81.90443877]
[1609533363403,5.47403363,29254.0,29253.0,81.89899525]
[1609533364494,5.57403363,29254.0,29253.0,81.89899525]
[1609533364696,5.47403363,29254.0,29253.0,81.89899525]
[1609533365697,5.47403363,29254.0,29253.0,81.89799525]
[1609533365894,5.47403363,29254.0,29253.0,81.89899525]
[1609533368920,5.47403363,29254.0,29253.0,81.83921773]
[1609533369816,5.47403363,29254.0,29253.0,81.83821773]
[1609533370017,5.47403363,29254.0,29253.0,81.83921773]
[1609533371631,6.5199084,29254.0,29253.0,80.95051772]
[1609533372023,6.75949231,29254.0,29253.0,80.26681771]
[1609533372221,6.72381575,29254.0,29253.0,80.23114171]
[1609533372422,7.67364184,29254.0,29253.0,80.23114171]
[1609533372619,6.91322575,29254.0,29253.0,80.23114171]
[1609533373121,6.91322575,29254.0,29253.0,80.23014171]